fUST/lending_fUST_20250820
["ID","MTS","AMOUNT","RATE_DAILY","PERIOD"]
[380316502,1755663038369,-151.0,0.00023699,2]
[380316503,1755663038378,-151.0,0.00023699,2]
[380316504,1755663038387,-151.0,0.00023699,2]
[380316505,1755663038396,-151.0,0.00023699,2]
[380316506,1755663038405,-151.0,0.00023699,2]
[380316507,1755663038414,-151.0,0.00023699,2]
[380316508,1755663038423,-151.0,0.00023699,2]
[380316509,1755663038432,-151.0,0.00023699,2]
[380316510,1755663038440,-151.0,0.00023699,2]
[380316511,1755663038449,-151.0,0.00023699,2]
[380316512,1755663038459,-151.0,0.00023699,2]
[380316513,1755663038467,-151.0,0.00023699,2]
[380316514,1755663038476,-151.0,0.00023699,2]
[380316515,1755663038485,-151.0,0.00023699,2]
[380316516,1755663038494,-151.0,0.00023699,2]
[380316517,1755663038503,-151.0,0.00023699,2]
[380316518,1755663038512,-151.0,0.00023699,2]
[380316519,1755663038521,-151.0,0.00023699,2]
[380316520,1755663038529,-198.99276897,0.00023699,2]
[380316521,1755663038538,-151.0,0.00023699,2]
[380316522,1755663038547,-151.0,0.00023699,2]
[380316523,1755663038556,-151.0,0.00023699,2]
[380316524,1755663038564,-151.0,0.00023699,2]
[380316525,1755663038691,-151.0,0.00023699,2]
[380316526,1755663038702,-151.0,0.00023699,2]
[380316527,1755663038712,-151.0,0.00023699,2]
[380316528,1755663038725,-151.0,0.00023699,2]
[380316529,1755663038735,-151.0,0.00023699,2]
[380316530,1755663038746,-151.0,0.00023699,2]
[380316531,1755663038755,-151.0,0.00023699,2]
[380316533,1755663038766,-151.0,0.00023699,2]
[380316534,1755663038775,-151.0,0.00023699,2]
[380316535,1755663038784,-300.0,0.00023699,2]
[380316536,1755663038794,-151.0,0.00023699,2]
[380316537,1755663038803,-151.0,0.00023699,2]
[380316538,1755663038812,-300.0,0.00023699,2]
[380316539,1755663038821,-151.0,0.00023699,2]
[380316540,1755663038831,-268.38095863,0.00023699,2]
[380316541,1755663038839,-300.0,0.00023699,2]
[380316542,1755663038849,-151.0,0.00023699,2]
[380316543,1755663038858,-151.0,0.00023699,2]
[380316544,1755663038869,-151.0,0.00023699,2]
[380316545,1755663038878,-300.0,0.00023699,2]
[380316546,1755663038887,-151.0,0.00023699,2]
[380316547,1755663038896,-151.0,0.00023699,2]
[380316548,1755663038905,-320.74982047,0.00023699,2]
[380316549,1755663038915,-151.0,0.00023699,2]
[380316550,1755663038923,-151.0,0.00023699,2]
[380316552,1755663038932,-151.0,0.00023699,2]
[380316553,1755663038942,-151.0,0.00023699,2]
[380316554,1755663038951,-151.0,0.00023699,2]
[380316555,1755663038960,-151.0,0.00023699,2]
[380316556,1755663038969,-151.0,0.00023699,2]
[380316557,1755663038979,-288.53915465,0.00023699,2]
[380316558,1755663038988,-1000.0,0.00023699,2]
[380316559,1755663038997,-1000.0,0.00023699,2]
[380316560,1755663039006,-1000.0,0.00023699,2]
[380316561,1755663039016,-1000.0,0.00023699,2]
[380316562,1755663039025,-1000.0,0.00023699,2]
[380316563,1755663039035,-1000.0,0.00023699,2]
[380316564,1755663039044,-1000.0,0.00023699,2]
[380316565,1755663039053,-1000.0,0.00023699,2]
[380316566,1755663039062,-1000.0,0.00023699,2]
[380316567,1755663039071,-1000.0,0.00023699,2]
[380316568,1755663039081,-1000.0,0.00023699,2]
[380316569,1755663039090,-1000.0,0.00023699,2]
[380316570,1755663039099,-1000.0,0.00023699,2]
[380316571,1755663039108,-482.13032032,0.000237,3]
[380316572,1755663039121,-23579.5827265,0.000237,3]
[380316573,1755663039131,-216.9170744,0.000237,3]
[380316574,1755663039140,-365.60469396,0.000237,3]
[380316575,1755663039149,-1000.0,0.00023708,2]
[380316576,1755663039159,-2119.60635696,0.00023709,2]
[380316577,1755663039169,-480.0,0.00023713,2]
[380316578,1755663039179,-689.47249453,0.00023716,2]
[380316579,1755663039190,-160.0,0.00023718,2]
[380316580,1755663039199,-215.82729805,0.00023718,2]
[380316581,1755663039208,-844.05985274,0.00023718,2]
[380316582,1755663039217,-232.24568399,0.00023718,2]
[380316583,1755663039226,-375.94359665,0.00023718,2]
[380316584,1755663039235,-160.0,0.00023718,2]
[380316585,1755663039246,-216.9170744,0.00023718,2]
[380316586,1755663039255,-160.0,0.00023718,2]
[380316587,1755663039264,-160.0,0.00023718,2]
[380316588,1755663039276,-417.15472785,0.00023718,2]
[380316589,1755663039285,-160.0,0.00023719,2]
[380316590,1755663039294,-160.0,0.00023724,2]
[380316591,1755663039303,-203.26847816,0.00023725,2]
[380316592,1755663039313,-500.0,0.00023725,2]
[380316593,1755663039322,-642.37016791,0.00023725,2]
[380316594,1755663039331,-500.0,0.00023725,2]
[380316595,1755663039341,-257.99176051,0.00023725,2]
[380316596,1755663039350,-480.0,0.00023726,2]
[380316597,1755663039359,-66772.0705548,0.00023726,2]
[380316598,1755663039368,-480.0,0.00023726,2]
[380316599,1755663039378,-480.0,0.00023727,2]
[380316600,1755663039387,-370000.0,0.00023728,2]
[380316601,1755663039396,-2119.60635696,0.00023728,2]
[380316602,1755663039405,-2298.70916242,0.00023733,2]
[380316603,1755663039414,-485.27173694,0.00023737,2]
[380316604,1755663039423,-295.12593839,0.00023737,2]
[380316605,1755663039431,-480.0,0.00023737,2]
[380316606,1755663039440,-211.9606357,0.00023747,2]
[380316607,1755663039449,-689.47249453,0.00023751,2]
[380316608,1755663039458,-165.21138705,0.00023773,2]
[380316609,1755663039468,-509.96383387,0.00023773,2]
[380316610,1755663039477,-310.8305346,0.00023773,2]
[380316611,1755663039486,-211.9606357,0.00023778,2]
[380316612,1755663039495,-150.22477465,0.0002378,2]
[380316613,1755663039504,-16840.48,0.000238,7]
[380316614,1755663039514,-1437.24,0.000238,7]
[380316615,1755663039523,-5150.56,0.000238,7]
[380316616,1755663039532,-417.15472785,0.000238,7]
[380316617,1755663039541,-528.77847288,0.000238,7]
[380316618,1755663039550,-240.03954782,0.00023827,2]
[380316619,1755663039558,-480.0,0.00023827,2]
[380316620,1755663039567,-1000.0,0.00023827,2]
[380316621,1755663039576,-1014.08878042,0.00023827,2]
[380316622,1755663039586,-9430.29,0.000239,4]
[380316623,1755663039595,-763.0,0.00023919,2]
[380316624,1755663039604,-2194.630462,0.00023925,2]
[380316625,1755663039614,-844.05985274,0.00024,7]
[380316626,1755663039623,-3113.34823663,0.00024,7]
[380316627,1755663039632,-2075.82,0.00024,3]
[380316628,1755663039641,-160.0,0.00024,7]
[380316629,1755663039651,-480.0,0.00024,2]
[380316630,1755663039660,-480.0,0.00024001,2]
[380316631,1755663039669,-480.0,0.00024011,2]
[380316632,1755663039678,-12500.0,0.0002408,7]
[380316633,1755663039687,-432.2343682,0.00024082,2]
[380316634,1755663039697,-432.2343682,0.00024082,2]
[380316635,1755663039706,-432.2343682,0.00024082,2]
[380316636,1755663039718,-432.2343682,0.00024082,2]
[380316637,1755663039726,-432.2343682,0.00024082,2]
[380316638,1755663039735,-432.2343682,0.00024082,2]
[380316639,1755663039745,-433.29499318,0.00024091,2]
[380316640,1755663039754,-155.843531,0.0002414,10]
[380316641,1755663039765,-1017.66256456,0.00024152,2]
[380316642,1755663039775,-2194.630462,0.00024217,2]
[380316643,1755663039785,-151.35466111,0.00024247,2]
[380316644,1755663039795,-1000.0,0.00024271,5]
[380316645,1755663039804,-480.0,0.00024275,2]
[380316646,1755663039813,-480.0,0.00024285,2]
[380316647,1755663039822,-155.37,0.00024316,7]
[380316648,1755663039831,-761.0,0.0002434,2]
[380316649,1755663039841,-293.9452039,0.00024356,2]
[380316650,1755663039850,-761.0,0.00024399,2]
[380316651,1755663039859,-155.37,0.00024416,7]
[380316652,1755663039869,-2194.630462,0.00024508,2]
[380316653,1755663039879,-155.38394297,0.00024516,7]
[380316654,1755663039889,-200.0,0.0002454,10]
[380316655,1755663039898,-480.0,0.00024549,2]
[380316656,1755663039908,-480.0,0.00024559,2]
[380316657,1755663039917,-433.29499318,0.00024569,2]
[380316658,1755663039926,-151.0,0.000246,10]
[380316659,1755663039935,-654.0,0.00024625,2]
[380316660,1755663039945,-155.843531,0.0002465,8]
[380316661,1755663039954,-151.0,0.00024658,2]
[380316662,1755663039963,-151.0,0.00024658,2]
[380316663,1755663039972,-151.71427847,0.00024658,2]
[380316664,1755663039982,-151.0,0.00024658,2]
[380316665,1755663039992,-152.10104815,0.00024658,2]
[380316666,1755663040001,-521.0,0.00024658,2]
[380316667,1755663040010,-184.07312114,0.00024658,2]
[380316668,1755663040020,-153.00135488,0.00024658,2]
[380316669,1755663040029,-500.0,0.00024658,2]
[380316670,1755663040038,-151.0,0.00024658,2]
[380316671,1755663040047,-155.843531,0.0002469,10]
[380316672,1755663040056,-2691.43508315,0.00024717,2]
[380316673,1755663040065,-155.843531,0.00024775,8]
[380316674,1755663040075,-761.0,0.00024789,2]
[380316675,1755663040084,-844.05985274,0.000248,3]
[380316676,1755663040093,-151.0,0.000248,9]
[380316677,1755663040102,-160.0,0.000248,3]
[380316678,1755663040111,-2800.57393865,0.000248,2]
[380316679,1755663040120,-1002.029363,0.000248,2]
[380316680,1755663040130,-151.0,0.000248,7]
[380316681,1755663040140,-151.0,0.000248,7]
[380316682,1755663040149,-152.778142,0.000248,7]
[380316683,1755663040158,-2194.630462,0.000248,2]
[380316684,1755663040168,-10929.7482861,0.000248,2]
[380316685,1755663040177,-152.754106,0.000248,7]
[380316686,1755663040187,-179.843549,0.000248,7]
[380316687,1755663040196,-151.0,0.000248,7]
[380316689,1755663040205,-151.0,0.000248,7]
[380316690,1755663040214,-151.0,0.000248,7]
[380316692,1755663040223,-151.0,0.000248,7]
[380316693,1755663040233,-151.0,0.000248,7]
[380316694,1755663040242,-151.0,0.000248,7]
[380316696,1755663040251,-151.0,0.000248,7]
[380316698,1755663040260,-151.0,0.000248,7]
[380316700,1755663040270,-151.0,0.000248,7]
[380316702,1755663040279,-151.0,0.000248,7]
[380316703,1755663040289,-151.0,0.000248,7]
[380316705,1755663040298,-151.0,0.000248,7]
[380316708,1755663040307,-191.904891,0.000248,7]
[380316710,1755663040317,-191.904891,0.000248,7]
[380316712,1755663040327,-191.904891,0.000248,7]
[380316714,1755663040336,-191.904891,0.000248,7]
[380316715,1755663040345,-151.0,0.000248,7]
[380316717,1755663040354,-1000.0,0.00024804,2]
[380316719,1755663040363,-480.0,0.00024823,2]
[380316721,1755663040373,-563.87,0.00024833,2]
[380316723,1755663040383,-150.352,0.00024846,2]
[380316724,1755663040391,-195.869,0.00024846,2]
[380316726,1755663040400,-177.014,0.00024846,2]
[380316727,1755663040410,-973.0,0.00024846,2]
[380316728,1755663040419,-639.856,0.00024846,2]
[380316730,1755663040429,-2157.912,0.00024846,2]
[380316732,1755663040438,-600.0,0.00024864,2]
[380316733,1755663040447,-578.20443966,0.00024873,2]
[380316734,1755663040456,-500.0,0.00024873,2]
[380316736,1755663040466,-500.0,0.00024873,2]
[380316737,1755663040475,-500.0,0.00024873,2]
[380316738,1755663040484,-500.0,0.00024873,2]
[380316739,1755663040494,-840.74986816,0.00024888,2]
[380316740,1755663040503,-840.74986816,0.00024889,2]
[380316741,1755663040512,-151.0,0.00024889,7]
[380316742,1755663040522,-151.0,0.00024889,7]
[380316743,1755663040532,-151.0,0.00024889,7]
[380316744,1755663040541,-151.0,0.00024889,7]
[380316745,1755663040550,-151.0,0.00024889,7]
[380316746,1755663040559,-151.0,0.00024889,7]
[380316747,1755663040569,-151.0,0.00024889,7]
[380316748,1755663040578,-151.0,0.00024889,7]
[380316749,1755663040587,-177.683862,0.00024889,7]
[380316750,1755663040596,-175.15558,0.00024889,7]
[380316751,1755663040606,-175.15558,0.00024889,7]
[380316752,1755663040615,-175.15558,0.00024889,7]
[380316753,1755663040624,-175.15558,0.00024889,7]
[380316754,1755663040634,-151.0,0.00024889,7]
[380316755,1755663040643,-151.0,0.00024889,7]
[380316756,1755663040652,-151.0,0.00024889,7]
[380316757,1755663040662,-151.0,0.00024889,7]
[380316758,1755663040671,-151.0,0.00024889,7]
[380316759,1755663040680,-151.0,0.00024889,7]
[380316760,1755663040689,-182.643296,0.00024889,7]
[380316761,1755663040698,-153.300585,0.00024889,7]
[380316762,1755663040708,-3793.42448808,0.00024899,2]
[380316763,1755663040719,-4081.68255998,0.00024899,2]
[380316764,1755663040728,-364.26749247,0.00024899,2]
[380316765,1755663040738,-7249.06822653,0.00024899,2]
[380316766,1755663040747,-2387.34255827,0.00024899,2]
[380316767,1755663040756,-3983.31260649,0.00024899,2]
[380316768,1755663040766,-500.0,0.00024899,2]
[380316769,1755663040775,-1715.40629371,0.00024899,2]
[380316770,1755663040784,-1715.40629371,0.00024899,2]
[380316771,1755663040794,-1715.40629371,0.00024899,2]
[380316772,1755663040803,-1715.40629371,0.00024899,2]
[380316773,1755663040818,-1715.40629371,0.00024899,2]
[380316774,1755663040829,-1715.40629371,0.00024899,2]
[380316775,1755663040838,-1715.40629371,0.00024899,2]
[380316776,1755663040847,-1715.40629371,0.00024899,2]
[380316777,1755663040856,-1715.40629371,0.00024899,2]
[380316778,1755663040874,-1715.40629371,0.00024899,2]
[380316779,1755663040893,-1715.40629371,0.00024899,2]
[380316780,1755663040908,-1715.40629371,0.00024899,2]
[380316781,1755663040917,-1715.40629371,0.00024899,2]
[380316782,1755663040926,-1715.40629371,0.00024899,2]
[380316783,1755663040936,-1715.40629371,0.00024899,2]
[380316784,1755663040946,-1715.40629371,0.00024899,2]
[380316785,1755663040955,-1715.40629371,0.00024899,2]
[380316786,1755663040964,-1715.40629371,0.00024899,2]
[380316787,1755663040974,-1715.40629371,0.00024899,2]
[380316788,1755663040983,-1715.40629371,0.00024899,2]
[380316789,1755663040993,-1715.40629371,0.00024899,2]
[380316790,1755663041003,-440.3966399,0.00024899,2]
[380316791,1755663041012,-1772.58650349,0.00024899,2]
[380316792,1755663041022,-1772.58650349,0.00024899,2]
[380316793,1755663041032,-1772.58650349,0.00024899,2]
[380316794,1755663041041,-1772.58650349,0.00024899,2]
[380316795,1755663041051,-1772.58650349,0.00024899,2]
[380316796,1755663041060,-1772.58650349,0.00024899,2]
[380316797,1755663041070,-1772.58650349,0.00024899,2]
[380316798,1755663041079,-1772.58650349,0.00024899,2]
[380316799,1755663041088,-1772.58650349,0.00024899,2]
[380316800,1755663041097,-151.0,0.00024899,7]
[380316801,1755663041106,-151.0,0.00024899,7]
[380316802,1755663041115,-151.0,0.00024899,7]
[380316803,1755663041124,-151.0,0.00024899,7]
[380316804,1755663041133,-151.0,0.00024899,7]
[380316805,1755663041142,-191.904891,0.00024899,7]
[380316806,1755663041151,-191.904891,0.00024899,7]
[380316807,1755663041160,-191.904891,0.00024899,7]
[380316808,1755663041170,-191.904891,0.00024899,7]
[380316809,1755663041179,-151.0,0.00024899,7]
[380316810,1755663041188,-3982.6064131,0.000249,2]
[380316811,1755663041198,-1762.0,0.000249,3]
[380316812,1755663041206,-1762.0,0.000249,3]
[380316813,1755663041215,-1762.0,0.000249,3]
[380316814,1755663041225,-1762.0,0.000249,3]
[380316815,1755663041234,-1762.0,0.000249,3]
[380316816,1755663041243,-1762.0,0.000249,3]
[380316817,1755663041252,-1762.0,0.000249,3]
[380316818,1755663041262,-1762.0,0.000249,3]
[380316819,1755663041271,-1762.0,0.000249,3]
[380316820,1755663041280,-333.03578267,0.000249,3]
[380316821,1755663041289,-330.75563126,0.000249,3]
[380316822,1755663041297,-161.0,0.000249,3]
[380316823,1755663041306,-160.23812421,0.000249,3]
[380316824,1755663041316,-151.0,0.000249,7]
[380316825,1755663041326,-279.29476802,0.000249,2]
[380316826,1755663041335,-155.843531,0.000249,8]
[380316827,1755663041344,-151.0,0.000249,7]
[380316828,1755663041354,-151.0,0.000249,7]
[380316829,1755663041363,-151.0,0.000249,7]
[380316830,1755663041373,-151.0,0.000249,7]
[380316831,1755663041383,-151.0,0.000249,7]
[380316832,1755663041393,-256.766162,0.000249,7]
[380316833,1755663041402,-152.141958,0.000249,7]
[380316834,1755663041411,-151.0,0.000249,7]
[380316835,1755663041421,-151.0,0.000249,7]
[380316836,1755663041430,-151.0,0.000249,7]
[380316837,1755663041439,-151.0,0.000249,7]
[380316838,1755663041449,-151.0,0.000249,7]
[380316839,1755663041458,-151.0,0.000249,7]
[380316840,1755663041467,-151.0,0.000249,7]
[380316841,1755663041477,-151.0,0.000249,7]
[380316842,1755663041486,-175.15558,0.000249,7]
[380316843,1755663041496,-175.15558,0.000249,7]
[380316844,1755663041505,-175.15558,0.000249,7]
[380316845,1755663041514,-175.15558,0.000249,7]
[380316846,1755663041524,-151.0,0.000249,7]
[380316847,1755663041533,-151.0,0.000249,7]
[380316848,1755663041542,-151.0,0.000249,7]
[380316849,1755663041552,-151.0,0.000249,7]
[380316850,1755663041561,-151.0,0.000249,7]
[380316851,1755663041570,-214.209078,0.000249,7]
[380316852,1755663041579,-151.379794,0.000249,7]
[380316853,1755663041588,-417.15472785,0.000249,3]
[380316854,1755663041597,-528.77847288,0.000249,3]
[380316855,1755663041607,-151.0,0.000249,7]
[380316856,1755663041616,-151.0,0.000249,7]
[380316857,1755663041625,-417.15472785,0.000249,7]
[380316858,1755663041635,-151.0,0.000249,7]
[380316859,1755663041644,-151.0,0.000249,7]
[380316860,1755663041653,-151.0,0.000249,7]
[380316861,1755663041662,-151.0,0.000249,7]
[380316862,1755663041672,-160.0,0.000249,3]
[380316863,1755663041682,-151.0,0.000249,7]
[380316864,1755663041691,-151.0,0.000249,7]
[380316865,1755663041701,-151.0,0.000249,7]
[380316866,1755663041711,-151.0,0.000249,7]
[380316867,1755663041724,-151.0,0.000249,7]
[380316868,1755663041733,-151.0,0.000249,7]
[380316869,1755663041744,-151.0,0.000249,7]
[380316870,1755663041754,-151.0,0.000249,7]
[380316871,1755663041763,-153.344798,0.000249,7]
[380316872,1755663041772,-155.475497,0.000249,7]
[380316873,1755663041781,-151.0,0.000249,7]
[380316874,1755663041792,-151.0,0.000249,7]
[380316875,1755663041801,-151.0,0.000249,7]
[380316876,1755663041810,-151.0,0.000249,7]
[380316877,1755663041820,-151.0,0.000249,7]
[380316878,1755663041829,-216.033577,0.000249,7]
[380316879,1755663041839,-160.0,0.000249,3]
[380316880,1755663041848,-49509.68455519,0.000249,2]
[380316881,1755663041863,-49045.63971639,0.000249,2]
[380316895,1755663043215,-253.91329771,0.00023716,10]
[380316914,1755663352341,1057.26355842,0.00027112,120]
[380316916,1755663426141,300.0,0.00028,120]
[380316917,1755663461270,300.0,0.00028,120]
[380316918,1755663485751,300.0,0.00028,120]
[380316919,1755663519028,300.0,0.00028,120]
[380316964,1755663554293,300.0,0.00028,120]
[380316966,1755663732186,163.868646,0.00013699,2]
[380316968,1755663828875,300.0,0.00028,120]
[380316969,1755663850771,300.0,0.00028,120]
[380316970,1755663877094,1345.87356736,0.00028767,120]
[380316971,1755663894054,1002.3,0.00027052,60]
[380316972,1755663895666,300.0,0.00028,120]
[380317006,1755663998946,207.18,0.0002871,120]
[380317007,1755664056287,300.0,0.00028,120]
[380317016,1755664119112,195.7807111,0.0002876,120]
[380317024,1755664136114,300.0,0.00028,120]
[380317026,1755664157846,300.0,0.00028,120]
[380317038,1755664205035,300.0,0.00028,120]
[380317042,1755664229083,300.0,0.00028,120]
[380317050,1755664232540,-5000.0,0.00019212,2]
[380317051,1755664232550,-590.59186414,0.000193,2]
[380317052,1755664232560,-160.0,0.0002,3]
[380317053,1755664232570,-1137.0,0.00020037,2]
[380317054,1755664232581,-1200.0,0.00020038,2]
[380317055,1755664232591,-300.0,0.00020038,2]
[380317057,1755664232601,-1312.12840139,0.00020039,2]
[380317060,1755664232612,-8139.87615654,0.00020039,2]
[380317062,1755664232621,-163.868646,0.00020548,2]
[380317064,1755664232630,-245.8797268,0.0002155,2]
[380317066,1755664232639,-268.0,0.00021818,2]
[380317069,1755664232649,-420.0,0.00021818,2]
[380317070,1755664232658,-175.965889,0.00021849,2]
[380317071,1755664232668,-1150.0,0.00022,2]
[380317072,1755664232678,-160.0,0.00022017,2]
[380317073,1755664232688,-160.0,0.00022017,2]
[380317074,1755664232697,-160.0,0.00022017,2]
[380317075,1755664232708,-480.0,0.00022611,2]
[380317076,1755664232718,-800.0,0.00022612,2]
[380317077,1755664232728,-528.82292514,0.0002329,2]
[380317078,1755664232738,-517.43491452,0.00023512,2]
[380317079,1755664232747,-2298.70916242,0.00023535,2]
[380317080,1755664232757,-160.0,0.00023566,2]
[380317081,1755664232775,-216.9170744,0.00023566,2]
[380317082,1755664232785,-160.0,0.00023567,2]
[380317083,1755664232795,-417.15472785,0.00023567,2]
[380317084,1755664232804,-160.0,0.00023572,2]
[380317085,1755664232814,-150.012382,0.0002359,10]
[380317086,1755664232823,-151.0,0.00023598,2]
[380317087,1755664232833,-151.0,0.00023598,2]
[380317088,1755664232842,-151.0,0.00023598,2]
[380317089,1755664232852,-151.0,0.00023598,2]
[380317090,1755664232861,-151.0,0.00023598,2]
[380317091,1755664232871,-159.22380202,0.00023598,2]
[380317092,1755664232881,-151.0,0.00023598,2]
[380317093,1755664232891,-151.0,0.00023598,2]
[380317094,1755664232900,-151.0,0.00023598,2]
[380317095,1755664232911,-151.0,0.00023598,2]
[380317097,1755664232921,-151.0,0.00023598,2]
[380317099,1755664232932,-151.0,0.00023598,2]
[380317101,1755664232942,-151.0,0.00023598,2]
[380317103,1755664232951,-11949.88291539,0.00023598,2]
[380317105,1755664232964,-429.06873695,0.00023598,2]
[380317132,1755664238512,-4126.66726625,0.00023331,2]
[380317133,1755664238523,-873.33273375,0.00023331,2]
[380317134,1755664238532,-215.82729805,0.00023566,2]
[380317135,1755664238542,-480.0,0.0002357,2]
[380317136,1755664238551,-5463.57079566,0.00023598,2]
[380317137,1755664238559,-274.64995202,0.00023598,2]
[380317138,1755664238568,-151.0,0.00023598,2]
[380317139,1755664238578,-151.0,0.00023598,2]
[380317140,1755664238587,-151.0,0.00023598,2]
[380317141,1755664238596,-151.0,0.00023598,2]
[380317142,1755664238604,-289.02492048,0.00023598,2]
[380317143,1755664238613,-151.35466111,0.00023598,2]
[380317144,1755664238622,-1794.29005544,0.000236,2]
[380317145,1755664238633,-1755.7043696,0.000236,2]
[380317146,1755664238642,-480.0,0.00023607,2]
[380317147,1755664238651,-178.90958182,0.00023607,2]
[380317148,1755664238661,-480.0,0.00023607,2]
[380317149,1755664238670,-480.0,0.00023607,2]
[380317150,1755664238679,-2000.0,0.00023622,4]
[380317151,1755664238688,-391.23920431,0.00023625,2]
[380317152,1755664238697,-642.37016791,0.00023625,2]
[380317153,1755664238706,-203.26847816,0.00023625,2]
[380317154,1755664238716,-500.0,0.00023625,2]
[380317155,1755664238725,-500.0,0.00023625,2]
[380317156,1755664238734,-257.99176051,0.00023625,2]
[380317157,1755664238743,-370000.0,0.00023626,2]
[380317158,1755664238753,-16840.48,0.000237,7]
[380317159,1755664238762,-12687.94051737,0.000237,7]
[380317160,1755664238772,-1637.97,0.000237,7]
[380317161,1755664238781,-5150.56,0.000237,7]
[380317162,1755664238790,-375.94359665,0.000237,7]
[380317163,1755664238799,-528.77847288,0.000237,7]
[380317164,1755664238808,-417.15472785,0.000237,7]
[380317165,1755664238818,-160.0,0.00023707,2]
[380317166,1755664238828,-800.0,0.00023708,2]
[380317168,1755664238837,-302.0,0.00023711,2]
[380317170,1755664238846,-1928.84178483,0.00023712,2]
[380317172,1755664238855,-480.0,0.00023713,2]
[380317174,1755664238864,-192.88417849,0.00023713,2]
[380317176,1755664238873,-211.9606357,0.00023722,2]
[380317178,1755664238882,-348.18360974,0.00023724,2]
[380317180,1755664238892,-484.18106362,0.00023726,2]
[380317182,1755664238902,-497.10432431,0.00023726,2]
[380317184,1755664238911,-480.76253618,0.00023726,2]
[380317186,1755664238919,-480.0,0.00023726,2]
[380317188,1755664238928,-150.22477465,0.00023726,2]
[380317190,1755664238937,-1000.0,0.00023727,2]
[380317192,1755664238947,-1014.08878042,0.00023727,2]
[380317194,1755664238956,-379.20987199,0.00023731,2]
[380317196,1755664238965,-192.88417849,0.00023747,2]
[380317198,1755664238974,-587.0,0.00023757,2]
[380317200,1755664238983,-1928.84178483,0.00023757,2]
[380317202,1755664238992,-379.20987199,0.00023776,2]
[380317204,1755664239001,-211.9606357,0.00023777,2]
[380317206,1755664239010,-348.18360974,0.00023781,2]
[380317208,1755664239019,-153.0,0.00023808,2]
[380317209,1755664239028,-480.0,0.00023844,2]
[380317211,1755664239037,-480.0,0.00023881,2]
[380317213,1755664239047,-480.0,0.00023881,2]
[380317215,1755664239056,-480.0,0.00023881,2]
[380317217,1755664239065,-9430.29,0.000239,4]
[380317219,1755664239076,-1755.7043696,0.000239,2]
[380317221,1755664239086,-160.0,0.0002391,3]
[380317223,1755664239095,-480.0,0.00023987,2]
[380317225,1755664239104,-66772.0705538,0.00023998,2]
[380317240,1755664239236,-159.0,0.00024,7]
[380317242,1755664239246,-160.0,0.00024,7]
[380317244,1755664239255,-241.69034967,0.00024,60]
[380317246,1755664239264,-1702.09573674,0.00024,2]
[380317248,1755664239274,-456.19665001,0.00024,2]
[380317250,1755664239283,-157.34,0.00024,14]
[380317252,1755664239292,-349.62862785,0.00024,7]
[380317254,1755664239301,-232.24568399,0.00024,7]
[380317256,1755664239310,-844.05985274,0.00024,7]
[380317258,1755664239319,-517.43491449,0.00024004,2]
[380317260,1755664239329,-160.0,0.00024055,2]
[380317262,1755664239338,-432.2343682,0.00024137,2]
[380317264,1755664239347,-150.012382,0.0002414,10]
[380317266,1755664239357,-1252.27520771,0.00024152,2]